[Event "*** SCC Grand Prix: Titled Tuesday Blitz"]
[Site "Chess.com"]
[Date "2020.07.21"]
[Round "7"]
[White "DishonorOnYourCow"]
[Black "talaicito"]
[Result "1-0"]
[WhiteElo "2322"]
[BlackElo "2073"]
[TimeControl "180+1"]
[EndTime "11:17:18 PDT"]
[Termination "DishonorOnYourCow won by resignation"]

1. d4 {[%clk 0:03:00.9]} 1... e6 {[%clk 0:02:59.6]} 2. c4 {[%clk 0:03:00.2]}
2... f5 {[%clk 0:03:00.1]} 3. g3 {[%clk 0:02:54.6]} 3... Nf6 {[%clk 0:03:00.4]}
4. Bg2 {[%clk 0:02:50]} 4... Be7 {[%clk 0:03:00.5]} 5. Nh3 {[%clk 0:02:48]} 5...
d6 {[%clk 0:02:59.9]} 6. O-O {[%clk 0:02:47.2]} 6... O-O {[%clk 0:02:59.3]} 7.
b3 {[%clk 0:02:34.3]} 7... e5 {[%clk 0:02:57.3]} 8. dxe5 {[%clk 0:02:33.9]} 8...
dxe5 {[%clk 0:02:57]} 9. Bb2 {[%clk 0:02:34.1]} 9... e4 {[%clk 0:02:12.7]} 10.
Nf4 {[%clk 0:02:25.5]} 10... c6 {[%clk 0:02:05.7]} 11. h4 {[%clk 0:01:55.4]}
11... a5 {[%clk 0:02:01.2]} 12. Qc1 {[%clk 0:01:49.1]} 12... Na6 {[%clk
0:01:55.2]} 13. Rd1 {[%clk 0:01:47]} 13... Qe8 {[%clk 0:01:55.2]} 14. Ba3 {[%clk
0:01:34.8]} 14... Nb4 {[%clk 0:01:52.6]} 15. Nc3 {[%clk 0:01:29]} 15... Bc5
{[%clk 0:01:49.9]} 16. Na4 {[%clk 0:01:13.5]} 16... Ba7 {[%clk 0:01:43]} 17. c5
{[%clk 0:01:11]} 17... Nfd5 {[%clk 0:01:38.3]} 18. Qc4 {[%clk 0:01:04.7]} 18...
Kh8 {[%clk 0:01:22.6]} 19. Nxd5 {[%clk 0:00:52.1]} 19... Nxd5 {[%clk 0:01:20.9]}
20. e3 {[%clk 0:00:51.4]} 20... Be6 {[%clk 0:01:18.7]} 21. Qc2 {[%clk
0:00:46.5]} 21... Nb4 {[%clk 0:01:14.8]} 22. Qc3 {[%clk 0:00:33.2]} 22... Nd5
{[%clk 0:01:05.8]} 23. Qd4 {[%clk 0:00:28.3]} 23... Qe7 {[%clk 0:01:01.1]} 24.
Bb2 {[%clk 0:00:24.1]} 24... Rad8 {[%clk 0:01:00]} 25. Qe5 {[%clk 0:00:17.8]}
25... Bb8 {[%clk 0:00:56.7]} 26. Qd4 {[%clk 0:00:15.8]} 26... Nb4 {[%clk
0:00:53.7]} 27. Qc3 {[%clk 0:00:14.5]} 27... Nd3 {[%clk 0:00:52.9]} 28. Bf1
{[%clk 0:00:12.4]} 28... Ne5 {[%clk 0:00:50.1]} 29. Rxd8 {[%clk 0:00:10.5]}
29... Rxd8 {[%clk 0:00:49]} 30. Be2 {[%clk 0:00:11]} 30... Nd3 {[%clk
0:00:38.7]} 31. Rd1 {[%clk 0:00:10.6]} 31... Be5 {[%clk 0:00:37.2]} 32. Qc2
{[%clk 0:00:09.8]} 32... Nxb2 {[%clk 0:00:35.5]} 33. Nxb2 {[%clk 0:00:10.7]}
33... h6 {[%clk 0:00:29.1]} 34. Rxd8+ {[%clk 0:00:09.6]} 34... Qxd8 {[%clk
0:00:28.2]} 35. Na4 {[%clk 0:00:10.5]} 35... g5 {[%clk 0:00:24.2]} 36. hxg5
{[%clk 0:00:09.4]} 36... hxg5 {[%clk 0:00:23.8]} 37. Qd1 {[%clk 0:00:10.3]}
37... Kg7 {[%clk 0:00:23.1]} 38. Qxd8 {[%clk 0:00:09.5]} 1-0

[Event "*** SCC Grand Prix: Titled Tuesday Blitz"]
[Site "Chess.com"]
[Date "2020.07.21"]
[Round "7"]
[White "boasovietica"]
[Black "Zmof"]
[Result "1-0"]
[WhiteElo "2422"]
[BlackElo "2184"]
[TimeControl "180+1"]
[EndTime "11:17:23 PDT"]
[Termination "boasovietica won on time"]

1. e4 {[%clk 0:03:00.9]} 1... c5 {[%clk 0:02:58.8]} 2. Nf3 {[%clk 0:03:00.1]}
2... Nc6 {[%clk 0:02:58.9]} 3. Nc3 {[%clk 0:02:59.8]} 3... e5 {[%clk 0:02:58.4]}
4. Bc4 {[%clk 0:02:59.1]} 4... Be7 {[%clk 0:02:57.6]} 5. d3 {[%clk 0:02:56.2]}
5... Nf6 {[%clk 0:02:57.4]} 6. Nd2 {[%clk 0:02:56]} 6... O-O {[%clk 0:02:55.3]}
7. Nf1 {[%clk 0:02:56]} 7... d6 {[%clk 0:02:55.7]} 8. Ne3 {[%clk 0:02:56.2]}
8... a6 {[%clk 0:02:47.9]} 9. a4 {[%clk 0:02:55.8]} 9... b6 {[%clk 0:02:47.7]}
10. Ncd5 {[%clk 0:02:53.1]} 10... Nxd5 {[%clk 0:02:42.7]} 11. Nxd5 {[%clk
0:02:46.1]} 11... Be6 {[%clk 0:02:38.7]} 12. O-O {[%clk 0:02:42.7]} 12... Bxd5
{[%clk 0:02:34.4]} 13. Bxd5 {[%clk 0:02:41.5]} 13... Rc8 {[%clk 0:02:34.6]} 14.
f4 {[%clk 0:02:41.3]} 14... exf4 {[%clk 0:02:29.5]} 15. Rxf4 {[%clk 0:02:26.7]}
15... Bg5 {[%clk 0:02:29.2]} 16. Rf2 {[%clk 0:02:15.9]} 16... Bxc1 {[%clk
0:02:28.5]} 17. Qxc1 {[%clk 0:02:15.9]} 17... Qd7 {[%clk 0:02:06.8]} 18. Qf4
{[%clk 0:02:05.3]} 18... Nb4 {[%clk 0:01:49.2]} 19. Bb3 {[%clk 0:02:03.1]} 19...
d5 {[%clk 0:01:41.1]} 20. exd5 {[%clk 0:01:59]} 20... Nxd5 {[%clk 0:01:40.8]}
21. Qg5 {[%clk 0:01:48.4]} 21... Rcd8 {[%clk 0:01:33.7]} 22. Raf1 {[%clk
0:01:47.2]} 22... h6 {[%clk 0:01:25.4]} 23. Qh5 {[%clk 0:01:40.2]} 23... Nf6
{[%clk 0:01:23.3]} 24. Rxf6 {[%clk 0:01:34.7]} 24... gxf6 {[%clk 0:01:22.1]} 25.
Qg6+ {[%clk 0:01:33.6]} 25... Kh8 {[%clk 0:01:19.1]} 26. Qxh6+ {[%clk
0:01:33.6]} 26... Kg8 {[%clk 0:01:19.7]} 27. Rf4 {[%clk 0:01:15.3]} 27... c4
{[%clk 0:00:36.6]} 28. Bxc4 {[%clk 0:01:03.5]} 28... Rfe8 {[%clk 0:00:20.8]} 29.
Rh4 {[%clk 0:00:58.1]} 29... Re1+ {[%clk 0:00:16.6]} 30. Kf2 {[%clk 0:00:54.1]}
30... Qf5+ {[%clk 0:00:16.8]} 31. Kxe1 {[%clk 0:00:23.2]} 31... Re8+ {[%clk
0:00:16.4]} 32. Kd2 {[%clk 0:00:20.3]} 32... Qf2+ {[%clk 0:00:15.4]} 33. Kc3
{[%clk 0:00:19.7]} 1-0

[Event "*** SCC Grand Prix: Titled Tuesday Blitz"]
[Site "Chess.com"]
[Date "2020.07.21"]
[Round "7"]
[White "GregShahade"]
[Black "Zurability"]
[Result "0-1"]
[WhiteElo "2692"]
[BlackElo "2591"]
[TimeControl "180+1"]
[EndTime "11:17:25 PDT"]
[Termination "Zurability won by checkmate"]

1. e4 {[%clk 0:03:00.9]} 1... e5 {[%clk 0:02:58.6]} 2. Nf3 {[%clk 0:03:01.1]}
2... Nc6 {[%clk 0:02:58.9]} 3. Bb5 {[%clk 0:03:01.4]} 3... a6 {[%clk 0:02:58.9]}
4. Ba4 {[%clk 0:03:01.8]} 4... Nf6 {[%clk 0:02:59.3]} 5. O-O {[%clk 0:03:01.3]}
5... Be7 {[%clk 0:02:59.3]} 6. Re1 {[%clk 0:03:01.4]} 6... b5 {[%clk 0:02:58.1]}
7. Bb3 {[%clk 0:03:01.8]} 7... O-O {[%clk 0:02:56.5]} 8. a4 {[%clk 0:03:01.9]}
8... Bb7 {[%clk 0:02:54.8]} 9. d3 {[%clk 0:03:01.4]} 9... d6 {[%clk 0:02:46.3]}
10. Nbd2 {[%clk 0:02:57.5]} 10... Na5 {[%clk 0:02:31]} 11. Ba2 {[%clk
0:02:44.2]} 11... c5 {[%clk 0:02:28]} 12. c3 {[%clk 0:02:33.2]} 12... b4 {[%clk
0:02:14.6]} 13. Nc4 {[%clk 0:02:29.4]} 13... Nxc4 {[%clk 0:02:10]} 14. Bxc4
{[%clk 0:02:30.3]} 14... a5 {[%clk 0:02:10.6]} 15. Bg5 {[%clk 0:02:22.7]} 15...
h6 {[%clk 0:02:03]} 16. Bxf6 {[%clk 0:02:22.8]} 16... Bxf6 {[%clk 0:02:03.9]}
17. Nd2 {[%clk 0:02:23]} 17... Bg5 {[%clk 0:01:56.6]} 18. Nf1 {[%clk 0:02:22.4]}
18... Kh8 {[%clk 0:01:54.6]} 19. g3 {[%clk 0:02:22]} 19... f5 {[%clk 0:01:53.8]}
20. Bd5 {[%clk 0:01:48.1]} 20... Bxd5 {[%clk 0:01:48.7]} 21. exd5 {[%clk
0:01:49]} 21... f4 {[%clk 0:01:49.5]} 22. Qg4 {[%clk 0:01:41.4]} 22... Qf6
{[%clk 0:01:35]} 23. Re2 {[%clk 0:01:34.5]} 23... bxc3 {[%clk 0:01:14.5]} 24.
bxc3 {[%clk 0:01:23.6]} 24... fxg3 {[%clk 0:00:49]} 25. hxg3 {[%clk 0:01:19]}
25... Rab8 {[%clk 0:00:43.9]} 26. Rae1 {[%clk 0:01:06.6]} 26... Qf3 {[%clk
0:00:32.4]} 27. Qc4 {[%clk 0:00:51.5]} 27... Rf7 {[%clk 0:00:27]} 28. Nh2 {[%clk
0:00:50.9]} 28... Qf5 {[%clk 0:00:26]} 29. Qa6 {[%clk 0:00:46.3]} 29... Rf6
{[%clk 0:00:18.7]} 30. Qxa5 {[%clk 0:00:41.6]} 30... Qxd3 {[%clk 0:00:18.9]} 31.
Qc7 {[%clk 0:00:14.8]} 31... Rbf8 {[%clk 0:00:16.6]} 32. Qd7 {[%clk 0:00:13]}
32... Rxf2 {[%clk 0:00:14.6]} 33. Rxf2 {[%clk 0:00:12]} 33... Qxg3+ {[%clk
0:00:14.8]} 34. Kh1 {[%clk 0:00:10.1]} 34... Rxf2 {[%clk 0:00:13.4]} 35. Qe8+
{[%clk 0:00:04.1]} 35... Kh7 {[%clk 0:00:13.1]} 36. Qh5 {[%clk 0:00:05]} 36...
Qg2# {[%clk 0:00:12.5]} 0-1

[Event "*** SCC Grand Prix: Titled Tuesday Blitz"]
[Site "Chess.com"]
[Date "2020.07.21"]
[Round "7"]
[White "Richarzard69"]
[Black "sewin16"]
[Result "0-1"]
[WhiteElo "2218"]
[BlackElo "2383"]
[TimeControl "180+1"]
[EndTime "11:17:26 PDT"]
[Termination "sewin16 won on time"]

1. Nf3 {[%clk 0:03:00.9]} 1... Nf6 {[%clk 0:02:59]} 2. c4 {[%clk 0:03:00.7]}
2... e6 {[%clk 0:02:58.6]} 3. d4 {[%clk 0:03:00.3]} 3... d5 {[%clk 0:02:59]} 4.
g3 {[%clk 0:03:00.6]} 4... Nbd7 {[%clk 0:02:55.6]} 5. Qc2 {[%clk 0:02:55.7]}
5... Bb4+ {[%clk 0:02:53.5]} 6. Bd2 {[%clk 0:02:55]} 6... Be7 {[%clk 0:02:51.1]}
7. Bg2 {[%clk 0:02:53.9]} 7... Ne4 {[%clk 0:02:50.2]} 8. O-O {[%clk 0:02:52.8]}
8... Nxd2 {[%clk 0:02:48.5]} 9. Nbxd2 {[%clk 0:02:52.3]} 9... O-O {[%clk
0:02:48.1]} 10. e4 {[%clk 0:02:48.9]} 10... dxe4 {[%clk 0:02:41.5]} 11. Nxe4
{[%clk 0:02:49.8]} 11... Nf6 {[%clk 0:02:41.5]} 12. Rad1 {[%clk 0:02:40.3]}
12... c6 {[%clk 0:02:36.1]} 13. Rfe1 {[%clk 0:02:36.9]} 13... Nxe4 {[%clk
0:02:31.2]} 14. Qxe4 {[%clk 0:02:35.8]} 14... Bf6 {[%clk 0:02:24.6]} 15. Ne5
{[%clk 0:02:27.8]} 15... Qb6 {[%clk 0:02:22.6]} 16. b3 {[%clk 0:02:22.3]} 16...
a5 {[%clk 0:02:21.3]} 17. c5 {[%clk 0:02:01.6]} 17... Qb4 {[%clk 0:02:07.8]} 18.
Nc4 {[%clk 0:01:55.9]} 18... a4 {[%clk 0:02:07]} 19. Nb6 {[%clk 0:01:47.9]}
19... Ra6 {[%clk 0:01:59.5]} 20. bxa4 {[%clk 0:01:42.1]} 20... Rd8 {[%clk
0:01:53.8]} 21. Bf1 {[%clk 0:01:28.1]} 21... Ra7 {[%clk 0:01:47]} 22. Re3 {[%clk
0:01:15.9]} 22... Bd7 {[%clk 0:01:34.4]} 23. Rb3 {[%clk 0:01:10.6]} 23... Qa5
{[%clk 0:01:33.5]} 24. Bd3 {[%clk 0:00:58.2]} 24... g6 {[%clk 0:01:19.4]} 25.
Qf4 {[%clk 0:00:56.1]} 25... Kg7 {[%clk 0:01:19.6]} 26. Qc7 {[%clk 0:00:32.4]}
26... Be8 {[%clk 0:01:18.5]} 27. Bc4 {[%clk 0:00:27.1]} 27... Rxd4 {[%clk
0:01:02.5]} 28. Rxd4 {[%clk 0:00:19.1]} 28... Qe1+ {[%clk 0:01:01.2]} 29. Kg2
{[%clk 0:00:14.6]} 29... Bxd4 {[%clk 0:01:00.8]} 30. Rf3 {[%clk 0:00:09.9]}
30... Bxc5 {[%clk 0:00:44.1]} 31. Nc8 {[%clk 0:00:06.7]} 31... Rxa4 {[%clk
0:00:42.8]} 32. Qd8 {[%clk 0:00:05.5]} 32... Rxc4 {[%clk 0:00:36.8]} 33. Qxe8
{[%clk 0:00:04.1]} 33... f5 {[%clk 0:00:26.8]} 34. Qd7+ {[%clk 0:00:04.3]} 34...
Kh6 {[%clk 0:00:24.5]} 35. Qf7 {[%clk 0:00:03]} 35... Rc1 {[%clk 0:00:22.6]} 0-1

[Event "*** SCC Grand Prix: Titled Tuesday Blitz"]
[Site "Chess.com"]
[Date "2020.07.21"]
[Round "7"]
[White "DaggiGretarsson"]
[Black "swimmerchess"]
[Result "0-1"]
[WhiteElo "2615"]
[BlackElo "2799"]
[TimeControl "180+1"]
[EndTime "11:17:29 PDT"]
[Termination "swimmerchess won by resignation"]

1. d4 {[%clk 0:03:00]} 1... Nf6 {[%clk 0:03:00.4]} 2. c4 {[%clk 0:02:59.7]} 2...
g6 {[%clk 0:03:01]} 3. Nc3 {[%clk 0:02:59.6]} 3... Bg7 {[%clk 0:03:01.6]} 4. e4
{[%clk 0:02:59.9]} 4... d6 {[%clk 0:03:02.2]} 5. f4 {[%clk 0:03:00.1]} 5... O-O
{[%clk 0:03:02.9]} 6. Nf3 {[%clk 0:03:00.2]} 6... c5 {[%clk 0:03:03.5]} 7. dxc5
{[%clk 0:02:59.9]} 7... Qa5 {[%clk 0:03:02]} 8. Bd3 {[%clk 0:03:00]} 8... Qxc5
{[%clk 0:03:01.8]} 9. Qe2 {[%clk 0:03:00.3]} 9... Nc6 {[%clk 0:03:02]} 10. Be3
{[%clk 0:03:00.3]} 10... Qa5 {[%clk 0:03:02.4]} 11. O-O {[%clk 0:03:00.4]} 11...
Bg4 {[%clk 0:03:01.8]} 12. Rac1 {[%clk 0:02:59.4]} 12... Nd7 {[%clk 0:02:59.7]}
13. Qf2 {[%clk 0:02:58.9]} 13... Nc5 {[%clk 0:02:58.1]} 14. Bb1 {[%clk
0:02:57.5]} 14... Nb4 {[%clk 0:02:51.9]} 15. Rfd1 {[%clk 0:02:47.3]} 15... Nc6
{[%clk 0:02:36.1]} 16. h3 {[%clk 0:02:42.1]} 16... Bxf3 {[%clk 0:02:34.9]} 17.
Qxf3 {[%clk 0:02:42.2]} 17... Rfd8 {[%clk 0:02:33.8]} 18. Qf2 {[%clk 0:02:33.2]}
18... Rac8 {[%clk 0:02:27.4]} 19. Nd5 {[%clk 0:02:16.1]} 19... e6 {[%clk
0:02:22.5]} 20. b4 {[%clk 0:02:15.6]} 20... Nxb4 {[%clk 0:02:15.7]} 21. Ne7+
{[%clk 0:02:15.4]} 21... Kf8 {[%clk 0:02:14.9]} 22. Nxc8 {[%clk 0:02:15.5]}
22... Rxc8 {[%clk 0:02:15.8]} 23. Rxd6 {[%clk 0:02:14.1]} 23... b6 {[%clk
0:02:09.9]} 24. e5 {[%clk 0:02:10.1]} 24... Qa3 {[%clk 0:01:40.7]} 25. Rcd1
{[%clk 0:02:00.7]} 25... Nc6 {[%clk 0:01:27.4]} 26. Bxc5 {[%clk 0:01:10.7]}
26... Qxc5 {[%clk 0:01:18]} 27. Qxc5 {[%clk 0:01:09.8]} 27... bxc5 {[%clk
0:01:18.9]} 28. Be4 {[%clk 0:00:52.9]} 28... Nd4 {[%clk 0:01:18.4]} 29. Kf2
{[%clk 0:00:52.5]} 29... Rb8 {[%clk 0:01:14.7]} 30. Rb1 {[%clk 0:00:52.3]} 30...
Rxb1 {[%clk 0:01:01.2]} 31. Bxb1 {[%clk 0:00:51.8]} 31... g5 {[%clk 0:01:02.1]}
32. g3 {[%clk 0:00:48.7]} 32... h5 {[%clk 0:01:01.9]} 33. Ra6 {[%clk 0:00:34.7]}
33... h4 {[%clk 0:00:59.3]} 34. fxg5 {[%clk 0:00:30.2]} 34... hxg3+ {[%clk
0:00:58.2]} 35. Kxg3 {[%clk 0:00:29.8]} 35... Bxe5+ {[%clk 0:00:59.1]} 36. Kf2
{[%clk 0:00:29.6]} 36... Bb8 {[%clk 0:00:55.8]} 37. Be4 {[%clk 0:00:27.7]} 37...
Kg7 {[%clk 0:00:54.7]} 38. h4 {[%clk 0:00:27.1]} 38... f5 {[%clk 0:00:52.1]} 39.
gxf6+ {[%clk 0:00:23.8]} 39... Kxf6 {[%clk 0:00:53]} 40. Ra3 {[%clk 0:00:22.8]}
40... Ke5 {[%clk 0:00:50.7]} 41. Re3 {[%clk 0:00:17]} 41... Kf4 {[%clk
0:00:50.6]} 42. h5 {[%clk 0:00:15.7]} 42... Be5 {[%clk 0:00:49.6]} 43. h6 {[%clk
0:00:15.4]} 43... Bf6 {[%clk 0:00:46.3]} 44. Bg6 {[%clk 0:00:13.3]} 44... Bh4+
{[%clk 0:00:45]} 0-1

[Event "*** SCC Grand Prix: Titled Tuesday Blitz"]
[Site "Chess.com"]
[Date "2020.07.21"]
[Round "7"]
[White "vovachesss"]
[Black "tufferguy"]
[Result "1-0"]
[WhiteElo "2579"]
[BlackElo "2300"]
[TimeControl "180+1"]
[EndTime "11:17:30 PDT"]
[Termination "vovachesss won on time"]

1. e4 {[%clk 0:03:00.9]} 1... e5 {[%clk 0:02:58.5]} 2. Nf3 {[%clk 0:02:57.7]}
2... Nc6 {[%clk 0:02:55.7]} 3. Nc3 {[%clk 0:02:56.4]} 3... Nf6 {[%clk
0:02:55.2]} 4. Nxe5 {[%clk 0:02:46.3]} 4... Nxe5 {[%clk 0:02:51.3]} 5. d4 {[%clk
0:02:46]} 5... Nc6 {[%clk 0:02:30]} 6. e5 {[%clk 0:02:45.3]} 6... Bb4 {[%clk
0:02:13.1]} 7. exf6 {[%clk 0:02:44.5]} 7... Qxf6 {[%clk 0:02:13.2]} 8. Be3
{[%clk 0:02:42.8]} 8... O-O {[%clk 0:02:08.5]} 9. Be2 {[%clk 0:02:37.6]} 9...
Bxc3+ {[%clk 0:01:56.7]} 10. bxc3 {[%clk 0:02:37.5]} 10... d5 {[%clk 0:01:54.4]}
11. O-O {[%clk 0:02:36.6]} 11... Bf5 {[%clk 0:01:52.7]} 12. c4 {[%clk
0:02:33.4]} 12... dxc4 {[%clk 0:01:51.2]} 13. Bxc4 {[%clk 0:02:33.6]} 13... Rad8
{[%clk 0:01:50.9]} 14. c3 {[%clk 0:02:33.9]} 14... Be6 {[%clk 0:01:46.4]} 15.
Bd3 {[%clk 0:02:29.9]} 15... Bf5 {[%clk 0:01:33]} 16. Be2 {[%clk 0:02:04.6]}
16... Rfe8 {[%clk 0:01:26.6]} 17. Qd2 {[%clk 0:01:58.6]} 17... Be4 {[%clk
0:01:23.5]} 18. Bg5 {[%clk 0:01:44.3]} 18... Qg6 {[%clk 0:01:21.5]} 19. f3
{[%clk 0:01:43.1]} 19... f6 {[%clk 0:01:09.3]} 20. Bf4 {[%clk 0:01:15.1]} 20...
Bd5 {[%clk 0:01:01.8]} 21. Bxc7 {[%clk 0:01:14.7]} 21... Rd7 {[%clk 0:00:57.4]}
22. Bd3 {[%clk 0:01:12.7]} 22... Qf7 {[%clk 0:00:45.1]} 23. Bg3 {[%clk
0:01:11.2]} 23... Rde7 {[%clk 0:00:39.6]} 24. Rfe1 {[%clk 0:01:07.7]} 24...
Rxe1+ {[%clk 0:00:39]} 25. Rxe1 {[%clk 0:01:08.6]} 25... Rxe1+ {[%clk
0:00:37.5]} 26. Qxe1 {[%clk 0:01:07.8]} 26... Bxa2 {[%clk 0:00:37.5]} 27. Qe4
{[%clk 0:01:01]} 27... g6 {[%clk 0:00:34.1]} 28. Bd6 {[%clk 0:00:56.1]} 28...
Qe6 {[%clk 0:00:30.8]} 29. Bg3 {[%clk 0:00:39.7]} 29... Qxe4 {[%clk 0:00:25.6]}
30. fxe4 {[%clk 0:00:40.6]} 30... Na5 {[%clk 0:00:23.8]} 31. Kf2 {[%clk
0:00:37.3]} 31... Bc4 {[%clk 0:00:23.8]} 32. Ke3 {[%clk 0:00:37.5]} 32... b5
{[%clk 0:00:21.7]} 33. d5 {[%clk 0:00:34.9]} 33... Kf7 {[%clk 0:00:20.9]} 34.
Bc2 {[%clk 0:00:33.4]} 34... Nb7 {[%clk 0:00:18]} 35. Kd4 {[%clk 0:00:33.6]}
35... a5 {[%clk 0:00:18.2]} 36. Bc7 {[%clk 0:00:29.9]} 36... a4 {[%clk
0:00:17.7]} 37. Bxa4 {[%clk 0:00:30.4]} 37... Bf1 {[%clk 0:00:16.2]} 38. Bb3
{[%clk 0:00:27.5]} 38... Bxg2 {[%clk 0:00:15.2]} 39. d6+ {[%clk 0:00:28.1]}
39... Ke8 {[%clk 0:00:14.6]} 40. Be6 {[%clk 0:00:28.2]} 40... Bf1 {[%clk
0:00:05.8]} 41. Bc8 {[%clk 0:00:27.4]} 41... Nxd6 {[%clk 0:00:02]} 42. Bxd6
{[%clk 0:00:28.3]} 1-0

[Event "*** SCC Grand Prix: Titled Tuesday Blitz"]
[Site "Chess.com"]
[Date "2020.07.21"]
[Round "7"]
[White "queen_iryna"]
[Black "Artem_Sadovsky"]
[Result "0-1"]
[WhiteElo "2269"]
[BlackElo "2500"]
[TimeControl "180+1"]
[EndTime "11:17:33 PDT"]
[Termination "Artem_Sadovsky won by resignation"]

1. d4 {[%clk 0:03:00.9]} 1... g6 {[%clk 0:02:45.7]} 2. Nc3 {[%clk 0:03:01.8]}
2... Bg7 {[%clk 0:02:46.6]} 3. e4 {[%clk 0:03:00.4]} 3... c6 {[%clk 0:02:44.2]}
4. f4 {[%clk 0:02:57.7]} 4... d5 {[%clk 0:02:44.4]} 5. e5 {[%clk 0:02:57.8]}
5... h5 {[%clk 0:02:44.5]} 6. Nf3 {[%clk 0:02:57.5]} 6... Nh6 {[%clk 0:02:44.7]}
7. h3 {[%clk 0:02:57.3]} 7... Nf5 {[%clk 0:02:43.6]} 8. Bd3 {[%clk 0:02:54.5]}
8... Ng3 {[%clk 0:02:41.5]} 9. Rg1 {[%clk 0:02:48.3]} 9... Bf5 {[%clk
0:02:41.6]} 10. Kf2 {[%clk 0:02:42.6]} 10... Ne4+ {[%clk 0:02:19]} 11. Bxe4
{[%clk 0:02:38.4]} 11... Bxe4 {[%clk 0:02:10.3]} 12. Nxe4 {[%clk 0:02:27.5]}
12... dxe4 {[%clk 0:02:11.2]} 13. Ng5 {[%clk 0:02:27.5]} 13... c5 {[%clk
0:02:05.7]} 14. dxc5 {[%clk 0:02:20.3]} 14... Qc7 {[%clk 0:01:54.8]} 15. Be3
{[%clk 0:02:00]} 15... Na6 {[%clk 0:01:48.9]} 16. Nxe4 {[%clk 0:01:51.3]} 16...
Rd8 {[%clk 0:01:35.3]} 17. Qe2 {[%clk 0:01:45.1]} 17... Nb4 {[%clk 0:01:36.2]}
18. Qb5+ {[%clk 0:01:44.5]} 18... Nc6 {[%clk 0:01:35.3]} 19. Rad1 {[%clk
0:01:39.3]} 19... O-O {[%clk 0:01:34.9]} 20. a3 {[%clk 0:01:17.1]} 20... Nxe5
{[%clk 0:01:33.3]} 21. fxe5 {[%clk 0:01:15.2]} 21... Qxe5 {[%clk 0:01:34.2]} 22.
Qc4 {[%clk 0:01:09.4]} 22... Rxd1 {[%clk 0:01:11.6]} 23. Rxd1 {[%clk 0:01:08.8]}
23... Qxb2 {[%clk 0:01:12.5]} 24. Bd4 {[%clk 0:00:43.8]} 24... Bxd4+ {[%clk
0:01:07]} 25. Qxd4 {[%clk 0:00:44.2]} 25... Qxc2+ {[%clk 0:01:07.2]} 26. Rd2
{[%clk 0:00:44]} 26... Qc1 {[%clk 0:01:07]} 27. Qe3 {[%clk 0:00:24.8]} 27... Kg7
{[%clk 0:00:56.8]} 28. Ng5 {[%clk 0:00:23.7]} 28... Qa1 {[%clk 0:00:51.9]} 29.
Nf3 {[%clk 0:00:23]} 29... Kg8 {[%clk 0:00:48.9]} 30. Ne5 {[%clk 0:00:22.9]}
30... Qb1 {[%clk 0:00:42.6]} 31. g4 {[%clk 0:00:22.1]} 31... h4 {[%clk
0:00:42.3]} 32. Nf3 {[%clk 0:00:19]} 32... Qh1 {[%clk 0:00:42.2]} 33. Nxh4
{[%clk 0:00:18.2]} 33... Qh2+ {[%clk 0:00:42.4]} 34. Ke1 {[%clk 0:00:18]} 34...
Qh1+ {[%clk 0:00:40.7]} 35. Ke2 {[%clk 0:00:18.1]} 35... e5 {[%clk 0:00:41.3]}
36. Nf3 {[%clk 0:00:17.1]} 36... Qg2+ {[%clk 0:00:40.7]} 37. Qf2 {[%clk
0:00:16.5]} 37... Qxh3 {[%clk 0:00:41.6]} 38. Rd7 {[%clk 0:00:14.9]} 38... Qxg4
{[%clk 0:00:41.3]} 39. Re7 {[%clk 0:00:12.6]} 39... e4 {[%clk 0:00:41.4]} 40.
Ke3 {[%clk 0:00:07.5]} 40... exf3 {[%clk 0:00:42.3]} 41. Qxf3 {[%clk 0:00:07.7]}
41... Qc4 {[%clk 0:00:42.5]} 42. Kf2 {[%clk 0:00:07.2]} 42... Qxc5+ {[%clk
0:00:42.5]} 43. Re3 {[%clk 0:00:07.8]} 43... Re8 {[%clk 0:00:41.4]} 44. Ke2
{[%clk 0:00:07.2]} 44... Qxe3+ {[%clk 0:00:42.3]} 45. Qxe3 {[%clk 0:00:08.1]}
0-1

[Event "*** SCC Grand Prix: Titled Tuesday Blitz"]
[Site "Chess.com"]
[Date "2020.07.21"]
[Round "7"]
[White "korkmaz16"]
[Black "arminmusovic"]
[Result "0-1"]
[WhiteElo "2344"]
[BlackElo "2527"]
[TimeControl "180+1"]
[EndTime "11:17:34 PDT"]
[Termination "arminmusovic won on time"]

1. d4 {[%clk 0:02:49.8]} 1... d5 {[%clk 0:02:59.5]} 2. Nf3 {[%clk 0:02:45]} 2...
Nf6 {[%clk 0:02:59.6]} 3. e3 {[%clk 0:02:43.2]} 3... c5 {[%clk 0:02:59.8]} 4. b3
{[%clk 0:02:42.7]} 4... cxd4 {[%clk 0:02:58.3]} 5. exd4 {[%clk 0:02:42.5]} 5...
Nc6 {[%clk 0:02:58.2]} 6. Bb2 {[%clk 0:02:35.1]} 6... Bg4 {[%clk 0:02:54.4]} 7.
Nbd2 {[%clk 0:02:34]} 7... e6 {[%clk 0:02:54.7]} 8. a3 {[%clk 0:02:33.5]} 8...
Bd6 {[%clk 0:02:53.9]} 9. Bd3 {[%clk 0:02:33]} 9... O-O {[%clk 0:02:53.2]} 10.
O-O {[%clk 0:02:32.6]} 10... Re8 {[%clk 0:02:53.3]} 11. Re1 {[%clk 0:02:29.1]}
11... Rc8 {[%clk 0:02:52.7]} 12. h3 {[%clk 0:02:28.6]} 12... Bh5 {[%clk
0:02:52.6]} 13. g4 {[%clk 0:02:02.9]} 13... Bg6 {[%clk 0:02:51.2]} 14. Qe2
{[%clk 0:01:54.8]} 14... Bb8 {[%clk 0:02:36]} 15. Ne5 {[%clk 0:01:46.7]} 15...
Nxe5 {[%clk 0:02:36.2]} 16. dxe5 {[%clk 0:01:46.4]} 16... Nd7 {[%clk 0:02:36.8]}
17. Rad1 {[%clk 0:01:34]} 17... Qh4 {[%clk 0:02:30.5]} 18. Kg2 {[%clk
0:01:30.5]} 18... a6 {[%clk 0:01:56]} 19. Nf3 {[%clk 0:01:25.2]} 19... Qe7
{[%clk 0:01:53.7]} 20. Bc1 {[%clk 0:00:51.3]} 20... Qc5 {[%clk 0:01:39.7]} 21.
Bb2 {[%clk 0:00:34.8]} 21... Nf8 {[%clk 0:01:32.8]} 22. b4 {[%clk 0:00:33]}
22... Qc7 {[%clk 0:01:20.2]} 23. Bd4 {[%clk 0:00:31.8]} 23... Bxd3 {[%clk
0:01:16.3]} 24. cxd3 {[%clk 0:00:32.7]} 24... Ng6 {[%clk 0:01:17]} 25. Qe3
{[%clk 0:00:31.3]} 25... Qe7 {[%clk 0:01:13.7]} 26. Qg5 {[%clk 0:00:25.7]} 26...
Qxg5 {[%clk 0:01:02.9]} 27. Nxg5 {[%clk 0:00:26.6]} 27... Rc2 {[%clk 0:01:03.4]}
28. Re3 {[%clk 0:00:19]} 28... Rec8 {[%clk 0:00:53.9]} 29. Kg3 {[%clk
0:00:19.1]} 29... h6 {[%clk 0:00:53.5]} 30. Nf3 {[%clk 0:00:18.6]} 30... Ra2
{[%clk 0:00:52.1]} 31. Ree1 {[%clk 0:00:16.8]} 31... Rcc2 {[%clk 0:00:47.2]} 32.
Rc1 {[%clk 0:00:14.9]} 32... Kh7 {[%clk 0:00:45.4]} 33. Rxc2 {[%clk 0:00:14.7]}
33... Rxc2 {[%clk 0:00:45.1]} 34. h4 {[%clk 0:00:13.8]} 34... f6 {[%clk
0:00:36]} 35. h5 {[%clk 0:00:12.6]} 35... Nxe5 {[%clk 0:00:29.5]} 36. Nxe5
{[%clk 0:00:11.1]} 36... Ra2 {[%clk 0:00:27.2]} 37. f4 {[%clk 0:00:08.9]} 37...
fxe5 {[%clk 0:00:27.3]} 38. Bxe5 {[%clk 0:00:09]} 38... Ba7 {[%clk 0:00:25.8]}
39. Bd6 {[%clk 0:00:05.8]} 39... Bf2+ {[%clk 0:00:25.8]} 40. Kf3 {[%clk
0:00:05]} 40... Bxe1 {[%clk 0:00:26.7]} 0-1